[Event "Live Chess"]
[Site "Chess.com"]
[Date "2023.09.16"]
[Round "-"]
[White "KBT2007"]
[Black "augustodemoraisrocha"]
[Result "1-0"]
[WhiteElo "1895"]
[BlackElo "1465"]
[TimeControl "900+5"]
[EndTime "7:18:10 PDT"]
[Termination "KBT2007 venceu por desistência"]

1. d4 {[%clk 0:15:03.3]} 1... d5 {[%clk 0:15:02.8]} 2. c4 {[%clk 0:15:07.5]}
2... dxc4 {[%clk 0:15:07.7]} 3. e3 {[%clk 0:15:10.6]} 3... e5 {[%clk 0:15:10.7]}
4. Bxc4 {[%clk 0:15:09.5]} 4... exd4 {[%clk 0:15:13.8]} 5. exd4 {[%clk
0:15:12.8]} 5... Qe7+ {[%clk 0:15:06.9]} 6. Be3 {[%clk 0:15:06.8]} 6... Be6
{[%clk 0:15:09.9]} 7. Qa4+ {[%clk 0:14:55.5]} 7... Qd7 {[%clk 0:14:52.6]} 8. Qb3
{[%clk 0:14:43.2]} 8... Bxc4 {[%clk 0:14:37.5]} 9. Qxc4 {[%clk 0:14:45.7]} 9...
Qc6 {[%clk 0:14:39.8]} 10. Qb3 {[%clk 0:14:29.8]} 10... Nf6 {[%clk 0:14:35.9]}
11. Nf3 {[%clk 0:14:31.7]} 11... Nbd7 {[%clk 0:14:14.4]} 12. Nc3 {[%clk
0:14:31.9]} 12... Qb6 {[%clk 0:14:13.7]} 13. Qc2 {[%clk 0:14:04.5]} 13... Bb4
{[%clk 0:14:06.8]} 14. O-O {[%clk 0:14:04.5]} 14... Qc6 {[%clk 0:13:57.1]} 15.
Rfe1 {[%clk 0:13:56.2]} 15... O-O-O {[%clk 0:13:53.3]} 16. a3 {[%clk 0:13:52.1]}
16... Bxc3 {[%clk 0:13:55.3]} 17. bxc3 {[%clk 0:13:53.6]} 17... Rhe8 {[%clk
0:13:50.9]} 18. c4 {[%clk 0:13:44.4]} 18... b5 {[%clk 0:13:06.9]} 19. c5 {[%clk
0:13:18.1]} 19... Nd5 {[%clk 0:13:01.9]} 20. Rab1 {[%clk 0:12:52.5]} 20... Nxe3
{[%clk 0:12:59.9]} 21. fxe3 {[%clk 0:12:55.7]} 21... a6 {[%clk 0:12:58.6]} 22.
Rb2 {[%clk 0:12:40.7]} 22... f6 {[%clk 0:12:56.9]} 23. Reb1 {[%clk 0:12:43]}
23... Rxe3 {[%clk 0:12:51.4]} 24. a4 {[%clk 0:12:44.9]} 24... Qe4 {[%clk
0:11:51.5]} 25. Qxe4 {[%clk 0:12:33.8]} 25... Rxe4 {[%clk 0:11:56.4]} 26. axb5
{[%clk 0:12:38]} 26... axb5 {[%clk 0:12:01.3]} 27. Rxb5 {[%clk 0:12:40.6]} 27...
Nf8 {[%clk 0:11:54.8]} 28. c6 {[%clk 0:12:40.4]} 28... Nd7 {[%clk 0:11:19.4]}
29. Ra5 {[%clk 0:12:28.2]} 29... Nb6 {[%clk 0:11:17.9]} 30. Rba1 {[%clk
0:12:21.8]} 30... Kb8 {[%clk 0:11:18.3]} 31. Ra7 {[%clk 0:11:54.5]} 31... Rd6
{[%clk 0:11:09.1]} 32. d5 {[%clk 0:11:29.4]} 32... Rxd5 {[%clk 0:10:53.9]} 33.
Rb7+ {[%clk 0:11:25.5]} 33... Kc8 {[%clk 0:10:55.5]} 34. Raa7 {[%clk 0:11:22]}
34... Re7 {[%clk 0:10:39.3]} 35. Rxb6 {[%clk 0:11:20.8]} 35... cxb6 {[%clk
0:10:13]} 36. Rxe7 {[%clk 0:11:24.8]} 36... Rd6 {[%clk 0:10:13.5]} 37. Rxg7
{[%clk 0:11:20.1]} 37... Rxc6 {[%clk 0:10:15.6]} 38. Rxh7 {[%clk 0:11:22.2]}
38... b5 {[%clk 0:10:15.6]} 39. Nd4 {[%clk 0:11:17.4]} 39... Rb6 {[%clk
0:10:17.4]} 40. Rh3 {[%clk 0:11:11.8]} 40... b4 {[%clk 0:10:17.6]} 41. Rb3
{[%clk 0:11:07.8]} 41... Kd7 {[%clk 0:10:18.2]} 42. Nc2 {[%clk 0:11:06.5]} 42...
Rc6 {[%clk 0:10:08.8]} 43. Nxb4 {[%clk 0:11:06]} 43... Rb6 {[%clk 0:10:11.8]}
44. Rd3+ {[%clk 0:11:08.8]} 44... Ke6 {[%clk 0:10:13.1]} 45. Nc2 {[%clk
0:11:00.3]} 45... Ke5 {[%clk 0:10:00.7]} 46. Ne1 {[%clk 0:10:47.7]} 46... f5
{[%clk 0:10:00.7]} 47. Kf2 {[%clk 0:10:49.1]} 47... f4 {[%clk 0:09:53.3]} 48.
Kf3 {[%clk 0:10:44.8]} 48... Rh6 {[%clk 0:09:47.9]} 49. h3 {[%clk 0:10:47.4]}
49... Rf6 {[%clk 0:09:47.2]} 50. Nc2 {[%clk 0:10:47.9]} 50... Kf5 {[%clk
0:09:41.8]} 51. Rd4 {[%clk 0:10:43.9]} 51... Kg5 {[%clk 0:09:44.4]} 52. Nb4
{[%clk 0:10:39.1]} 52... Rb6 {[%clk 0:09:33.7]} 53. Rxf4 {[%clk 0:10:29]} 53...
Rb5 {[%clk 0:09:28.4]} 54. Nd3 {[%clk 0:10:25.1]} 54... Rb3 {[%clk 0:09:26.8]}
55. Ke3 {[%clk 0:10:07.7]} 55... Rxd3+ {[%clk 0:09:24]} 56. Kxd3 {[%clk
0:10:10.8]} 56... Kxf4 {[%clk 0:09:28]} 57. Ke2 {[%clk 0:10:11.8]} 57... Kg3
{[%clk 0:09:29.5]} 58. Ke3 {[%clk 0:10:14.7]} 58... Kh4 {[%clk 0:09:33.5]} 59.
Kf4 {[%clk 0:10:15.2]} 59... Kh5 {[%clk 0:09:34.9]} 60. Kf5 {[%clk 0:10:17.7]}
60... Kh4 {[%clk 0:09:37.6]} 61. g4 {[%clk 0:10:21]} 61... Kxh3 {[%clk
0:09:39.8]} 62. g5 {[%clk 0:10:25.6]} 1-0

[Event "Live Chess"]
[Site "Chess.com"]
[Date "2023.09.16"]
[Round "-"]
[White "AnthonyGabriel1"]
[Black "vitinho_lawliet"]
[Result "1-0"]
[WhiteElo "2182"]
[BlackElo "934"]
[TimeControl "900+5"]
[EndTime "7:18:26 PDT"]
[Termination "AnthonyGabriel1 venceu por xeque-mate"]

1. e4 {[%clk 0:15:04.1]} 1... e6 {[%clk 0:15:00.1]} 2. Nc3 {[%clk 0:15:06.4]}
2... d5 {[%clk 0:15:02.1]} 3. d4 {[%clk 0:15:11]} 3... c5 {[%clk 0:15:01.9]} 4.
Nf3 {[%clk 0:15:11.4]} 4... Nc6 {[%clk 0:14:58.9]} 5. Bb5 {[%clk 0:15:12.2]}
5... a6 {[%clk 0:14:56.9]} 6. Bxc6+ {[%clk 0:15:15.7]} 6... bxc6 {[%clk
0:15:01.3]} 7. Qe2 {[%clk 0:15:08.6]} 7... Qb6 {[%clk 0:15:02.5]} 8. dxc5 {[%clk
0:15:05.6]} 8... Bxc5 {[%clk 0:14:57.7]} 9. exd5 {[%clk 0:15:09.4]} 9... Ne7
{[%clk 0:14:47.5]} 10. dxe6 {[%clk 0:14:51]} 10... Bxe6 {[%clk 0:14:43.1]} 11.
O-O {[%clk 0:14:51.1]} 11... Qb8 {[%clk 0:14:22.2]} 12. Ne4 {[%clk 0:14:52.1]}
12... Bd6 {[%clk 0:14:22]} 13. Rd1 {[%clk 0:14:50.3]} 13... Nf5 {[%clk
0:14:14.6]} 14. Nxd6+ {[%clk 0:14:48.1]} 14... Nxd6 {[%clk 0:14:17.3]} 15. Bf4
{[%clk 0:14:52.7]} 15... Qd8 {[%clk 0:13:55.3]} 16. Bxd6 {[%clk 0:14:48.2]}
16... Qf6 {[%clk 0:13:43.8]} 17. Be5 {[%clk 0:14:12.6]} 17... Qg6 {[%clk
0:13:32.7]} 18. Bd6 {[%clk 0:14:12.9]} 18... Rd8 {[%clk 0:13:25]} 19. c4 {[%clk
0:14:12]} 19... c5 {[%clk 0:13:25.7]} 20. Ne5 {[%clk 0:14:11.9]} 20... Qg5
{[%clk 0:13:20.5]} 21. f4 {[%clk 0:14:11.1]} 21... Qf5 {[%clk 0:13:07.9]} 22.
Bxc5 {[%clk 0:13:59.2]} 22... Rxd1+ {[%clk 0:13:02.3]} 23. Rxd1 {[%clk
0:14:04.1]} 23... f6 {[%clk 0:13:05.1]} 24. g4 {[%clk 0:13:43.3]} 24... Qxf4
{[%clk 0:13:01]} 25. Nc6 {[%clk 0:13:47.4]} 25... Kf7 {[%clk 0:12:48.9]} 26.
Nd8+ {[%clk 0:13:48.4]} 26... Kg6 {[%clk 0:12:49.5]} 27. Nxe6 {[%clk 0:13:51.5]}
27... Qb8 {[%clk 0:12:31]} 28. Qe4+ {[%clk 0:13:52.1]} 28... Kf7 {[%clk
0:12:30.9]} 29. Rd7+ {[%clk 0:13:54.5]} 29... Ke8 {[%clk 0:12:29.2]} 30. Nf8+
{[%clk 0:13:58.2]} 30... Qe5 {[%clk 0:12:26.6]} 31. Qa8+ {[%clk 0:14:00.6]}
31... Qb8 {[%clk 0:12:17.3]} 32. Qxb8# {[%clk 0:14:05.2]} 1-0

[Event "Live Chess"]
[Site "Chess.com"]
[Date "2023.09.16"]
[Round "-"]
[White "Mika635Isa"]
[Black "abaakate"]
[Result "0-1"]
[WhiteElo "532"]
[BlackElo "1916"]
[TimeControl "900+5"]
[EndTime "7:18:28 PDT"]
[Termination "abaakate venceu por xeque-mate"]

1. e4 {[%clk 0:15:00.7]} 1... c5 {[%clk 0:15:03.2]} 2. Nc3 {[%clk 0:14:56.2]}
2... Nc6 {[%clk 0:15:03.6]} 3. Nf3 {[%clk 0:14:48.9]} 3... e6 {[%clk 0:15:04.4]}
4. d4 {[%clk 0:14:48.1]} 4... cxd4 {[%clk 0:15:07.6]} 5. Nxd4 {[%clk 0:14:50.6]}
5... Nf6 {[%clk 0:15:09.5]} 6. Nxc6 {[%clk 0:14:52.4]} 6... bxc6 {[%clk
0:15:14.4]} 7. Bd3 {[%clk 0:14:37.7]} 7... Bb4 {[%clk 0:15:15.8]} 8. Bd2 {[%clk
0:14:31.1]} 8... O-O {[%clk 0:15:14.4]} 9. O-O {[%clk 0:14:35]} 9... d5 {[%clk
0:15:12.8]} 10. e5 {[%clk 0:14:15.3]} 10... Nd7 {[%clk 0:15:09]} 11. a3 {[%clk
0:13:22.5]} 11... Bc5 {[%clk 0:15:06.6]} 12. Qh5 {[%clk 0:12:28.1]} 12... g6
{[%clk 0:14:34.4]} 13. Qg5 {[%clk 0:11:51.2]} 13... Qxg5 {[%clk 0:14:29.6]} 14.
Bxg5 {[%clk 0:11:52.9]} 14... Nxe5 {[%clk 0:14:31.3]} 15. Rfe1 {[%clk
0:11:33.9]} 15... Nxd3 {[%clk 0:14:33.5]} 16. cxd3 {[%clk 0:11:36.7]} 16... Ba6
{[%clk 0:14:35.5]} 17. Rad1 {[%clk 0:11:35.8]} 17... Rab8 {[%clk 0:14:33.9]} 18.
Be3 {[%clk 0:10:27.4]} 18... Bxe3 {[%clk 0:14:33.3]} 19. Rxe3 {[%clk 0:10:28.6]}
19... Rxb2 {[%clk 0:14:36.6]} 20. h3 {[%clk 0:09:55.5]} 20... Rfb8 {[%clk
0:14:38.3]} 21. Kh2 {[%clk 0:09:25.6]} 21... Rxf2 {[%clk 0:14:39.8]} 22. Kg3
{[%clk 0:09:29.2]} 22... Rbb2 {[%clk 0:14:42.1]} 23. Na4 {[%clk 0:08:35.7]}
23... Rxg2+ {[%clk 0:14:43.3]} 24. Kh4 {[%clk 0:08:25.4]} 24... Rbf2 {[%clk
0:14:43.7]} 25. Rg3 {[%clk 0:08:25.4]} 25... Rf4+ {[%clk 0:14:30.3]} 26. Kg5
{[%clk 0:07:58.5]} 26... Rf5+ {[%clk 0:14:14.4]} 27. Kg4 {[%clk 0:07:56.6]}
27... h5+ {[%clk 0:14:17.4]} 28. Kh4 {[%clk 0:07:53.3]} 28... g5+ {[%clk
0:14:21.3]} 29. Kxh5 {[%clk 0:07:20.1]} 29... Rxg3 {[%clk 0:14:24.4]} 30. Rb1
{[%clk 0:06:48]} 30... g4+ {[%clk 0:14:04.5]} 31. Kh6 {[%clk 0:06:21.1]} 31...
Rxh3# {[%clk 0:14:07.4]} 0-1

[Event "Live Chess"]
[Site "Chess.com"]
[Date "2023.09.16"]
[Round "-"]
[White "danilo655"]
[Black "zxsimon"]
[Result "0-1"]
[WhiteElo "720"]
[BlackElo "1480"]
[TimeControl "900+5"]
[EndTime "7:18:55 PDT"]
[Termination "zxsimon venceu por desistência"]

1. e4 {[%clk 0:14:56.8]} 1... c5 {[%clk 0:15:03.4]} 2. Nf3 {[%clk 0:14:49.4]}
2... Nc6 {[%clk 0:15:06.7]} 3. Bb5 {[%clk 0:14:37.2]} 3... d6 {[%clk 0:15:06.4]}
4. Bxc6+ {[%clk 0:14:18.9]} 4... bxc6 {[%clk 0:15:11.3]} 5. O-O {[%clk
0:14:15.6]} 5... g6 {[%clk 0:15:11.9]} 6. a3 {[%clk 0:13:46.9]} 6... Bg7 {[%clk
0:15:10]} 7. Nc3 {[%clk 0:13:32.8]} 7... Nf6 {[%clk 0:15:11.5]} 8. d3 {[%clk
0:13:19.3]} 8... Bg4 {[%clk 0:15:05.4]} 9. h3 {[%clk 0:12:34.2]} 9... Bd7 {[%clk
0:15:04.9]} 10. b4 {[%clk 0:11:49.5]} 10... cxb4 {[%clk 0:15:03.8]} 11. axb4
{[%clk 0:11:52]} 11... O-O {[%clk 0:15:06.9]} 12. Bf4 {[%clk 0:11:36.6]} 12...
Nh5 {[%clk 0:15:08.7]} 13. Be3 {[%clk 0:11:02.9]} 13... Bxc3 {[%clk 0:15:07.8]}
14. Ra3 {[%clk 0:10:24]} 14... Bg7 {[%clk 0:14:49.8]} 15. Re1 {[%clk 0:09:20]}
15... Qc7 {[%clk 0:14:04.8]} 16. c3 {[%clk 0:08:12.4]} 16... a5 {[%clk
0:14:01.5]} 17. Qa1 {[%clk 0:07:54]} 17... Qb7 {[%clk 0:13:25.2]} 18. Qa2 {[%clk
0:07:08.8]} 18... axb4 {[%clk 0:13:10.8]} 19. cxb4 {[%clk 0:07:05.5]} 19... Rxa3
{[%clk 0:13:07.5]} 20. Qxa3 {[%clk 0:07:01.4]} 20... Ra8 {[%clk 0:13:05.1]} 21.
Qb3 {[%clk 0:06:48.3]} 21... Be6 {[%clk 0:13:06.2]} 22. Qb1 {[%clk 0:05:48.2]}
22... Ba2 {[%clk 0:12:56.3]} 23. Qc2 {[%clk 0:05:21.3]} 23... Be6 {[%clk
0:12:27.2]} 24. Rb1 {[%clk 0:04:43.1]} 24... Ra2 {[%clk 0:12:05.8]} 25. Qc1
{[%clk 0:04:17.1]} 25... Ra4 {[%clk 0:11:49.7]} 26. Bd2 {[%clk 0:04:02.2]} 26...
Qa6 {[%clk 0:11:25.4]} 27. Nd4 {[%clk 0:03:44.3]} 27... Bxd4 {[%clk 0:11:23.6]}
28. Qd1 {[%clk 0:01:59.7]} 28... Ra1 {[%clk 0:11:22.3]} 29. Be3 {[%clk
0:01:27.8]} 29... Rxb1 {[%clk 0:11:19.6]} 30. Qxb1 {[%clk 0:01:29.2]} 30... Qa1
{[%clk 0:11:19.5]} 31. Qxa1 {[%clk 0:01:22.3]} 31... Bxa1 {[%clk 0:11:22.3]} 32.
g4 {[%clk 0:01:05.9]} 32... Nf6 {[%clk 0:11:23.2]} 0-1

[Event "Live Chess"]
[Site "Chess.com"]
[Date "2023.09.16"]
[Round "-"]
[White "Abofado"]
[Black "Giulliajapa007"]
[Result "0-1"]
[WhiteElo "581"]
[BlackElo "1014"]
[TimeControl "900+5"]
[EndTime "7:19:39 PDT"]
[Termination "Giulliajapa007 venceu por desistência"]

1. e4 {[%clk 0:15:02.1]} 1... e5 {[%clk 0:15:03]} 2. Nf3 {[%clk 0:15:05.9]} 2...
Nc6 {[%clk 0:15:06.2]} 3. d4 {[%clk 0:15:07.8]} 3... exd4 {[%clk 0:15:06.7]} 4.
Nxd4 {[%clk 0:15:11.9]} 4... Nxd4 {[%clk 0:15:09.5]} 5. c3 {[%clk 0:15:15.6]}
5... Nc6 {[%clk 0:15:11.8]} 6. Bc4 {[%clk 0:15:12.4]} 6... Nf6 {[%clk
0:15:06.4]} 7. Qf3 {[%clk 0:14:57.8]} 7... Be7 {[%clk 0:15:03]} 8. e5 {[%clk
0:15:01]} 8... Nxe5 {[%clk 0:15:03.1]} 9. Qh3 {[%clk 0:14:58.9]} 9... Nxc4
{[%clk 0:15:05.1]} 10. Na3 {[%clk 0:14:54.3]} 10... Nxa3 {[%clk 0:15:07.4]} 11.
bxa3 {[%clk 0:14:58]} 11... O-O {[%clk 0:15:11.2]} 12. Bb2 {[%clk 0:14:58]}
12... d5 {[%clk 0:15:13.6]} 13. O-O-O {[%clk 0:15:00.1]} 13... Bxh3 {[%clk
0:15:16]} 14. gxh3 {[%clk 0:15:03]} 14... Ne4 {[%clk 0:15:19.8]} 0-1

[Event "Live Chess"]
[Site "Chess.com"]
[Date "2023.09.16"]
[Round "-"]
[White "mary260210"]
[Black "AlphaKaua10"]
[Result "1-0"]
[WhiteElo "888"]
[BlackElo "1032"]
[TimeControl "900+5"]
[EndTime "7:19:53 PDT"]
[Termination "mary260210 venceu por desistência"]

1. d4 {[%clk 0:15:02]} 1... c5 {[%clk 0:15:03.9]} 2. dxc5 {[%clk 0:15:04.6]}
2... Qa5+ {[%clk 0:15:07.9]} 3. Bd2 {[%clk 0:14:50.7]} 3... Qxc5 {[%clk
0:15:11.8]} 4. Nc3 {[%clk 0:14:50.2]} 4... Nf6 {[%clk 0:15:15.1]} 5. Na4 {[%clk
0:14:50.4]} 5... Qh5 {[%clk 0:15:17.4]} 6. e3 {[%clk 0:14:36.5]} 6... Qxd1+
{[%clk 0:15:18.8]} 7. Rxd1 {[%clk 0:14:38.9]} 7... e6 {[%clk 0:15:23.7]} 8. Nf3
{[%clk 0:14:40.9]} 8... Be7 {[%clk 0:15:27]} 9. Bc4 {[%clk 0:14:42]} 9... O-O
{[%clk 0:15:30.5]} 10. Ne5 {[%clk 0:14:30.5]} 10... a6 {[%clk 0:15:31.6]} 11. a3
{[%clk 0:14:25.3]} 11... b5 {[%clk 0:15:34.6]} 12. Bxb5 {[%clk 0:14:26.8]} 12...
axb5 {[%clk 0:15:37.8]} 13. Nc3 {[%clk 0:14:28.8]} 13... Nd5 {[%clk 0:15:34.3]}
14. Nxb5 {[%clk 0:14:28.7]} 14... f6 {[%clk 0:15:30.9]} 15. e4 {[%clk
0:14:29.8]} 15... fxe5 {[%clk 0:15:34.1]} 16. exd5 {[%clk 0:14:33.9]} 16... exd5
{[%clk 0:15:38.4]} 17. Be3 {[%clk 0:14:29.6]} 17... d4 {[%clk 0:15:40.7]} 18.
Bd2 {[%clk 0:14:28.5]} 18... Bc5 {[%clk 0:15:39.3]} 19. Bb4 {[%clk 0:14:30]}
19... Bxb4+ {[%clk 0:15:42.4]} 20. axb4 {[%clk 0:14:33.5]} 20... Ba6 {[%clk
0:15:45.7]} 21. Nd6 {[%clk 0:14:34]} 21... Ra7 {[%clk 0:15:49.1]} 22. b5 {[%clk
0:14:37.3]} 22... Bc8 {[%clk 0:15:49.9]} 23. b6 {[%clk 0:14:33.9]} 23... Rb7
{[%clk 0:15:43.7]} 24. Nxb7 {[%clk 0:14:37.1]} 24... Bxb7 {[%clk 0:15:48.6]} 25.
c3 {[%clk 0:14:35.2]} 25... dxc3 {[%clk 0:15:50.6]} 26. bxc3 {[%clk 0:14:39.3]}
26... Rf6 {[%clk 0:15:54.6]} 27. Ra1 {[%clk 0:14:37.7]} 27... Bxg2 {[%clk
0:15:55.8]} 28. Rg1 {[%clk 0:14:38.6]} 28... Bb7 {[%clk 0:15:57.6]} 29. Ra7
{[%clk 0:14:40.5]} 29... Bc6 {[%clk 0:16:00.1]} 30. b7 {[%clk 0:14:41.2]} 30...
Bb5 {[%clk 0:15:50.4]} 31. Ra8 {[%clk 0:14:36.9]} 31... Rc6 {[%clk 0:15:46.1]}
32. Rxb8+ {[%clk 0:14:38.4]} 32... Kf7 {[%clk 0:15:49.9]} 33. Rc8 {[%clk
0:14:37.2]} 33... Ra6 {[%clk 0:15:44.8]} 34. Ra8 {[%clk 0:14:35.8]} 34... Rc6
{[%clk 0:15:47]} 35. b8=Q {[%clk 0:14:36.7]} 35... Rxc3 {[%clk 0:15:49.7]} 36.
Qxb5 {[%clk 0:14:38.1]} 1-0

[Event "Live Chess"]
[Site "Chess.com"]
[Date "2023.09.16"]
[Round "-"]
[White "Gustavinh13"]
[Black "ArthurMPRJ"]
[Result "1-0"]
[WhiteElo "1935"]
[BlackElo "1384"]
[TimeControl "900+5"]
[EndTime "7:20:06 PDT"]
[Termination "Gustavinh13 venceu por desistência"]

1. e4 {[%clk 0:14:55.7]} 1... c5 {[%clk 0:15:03.4]} 2. Nf3 {[%clk 0:14:59.9]}
2... e6 {[%clk 0:15:07.6]} 3. d4 {[%clk 0:15:04.1]} 3... cxd4 {[%clk 0:15:12.5]}
4. Nxd4 {[%clk 0:15:08.4]} 4... Nc6 {[%clk 0:15:17]} 5. Nc3 {[%clk 0:15:11.5]}
5... Qc7 {[%clk 0:15:18.3]} 6. Be3 {[%clk 0:15:13.6]} 6... a6 {[%clk 0:15:22.1]}
7. Be2 {[%clk 0:15:12.4]} 7... Nf6 {[%clk 0:15:23.5]} 8. O-O {[%clk 0:14:57.2]}
8... Be7 {[%clk 0:15:17.4]} 9. f4 {[%clk 0:14:51.3]} 9... d6 {[%clk 0:15:20.2]}
10. Kh1 {[%clk 0:14:23.2]} 10... O-O {[%clk 0:15:15.6]} 11. f5 {[%clk
0:14:04.8]} 11... Nxd4 {[%clk 0:15:06.9]} 12. Bxd4 {[%clk 0:14:00.9]} 12... b5
{[%clk 0:15:11.2]} 13. a3 {[%clk 0:13:43.1]} 13... Bb7 {[%clk 0:15:13.1]} 14.
Bd3 {[%clk 0:13:39.1]} 14... e5 {[%clk 0:14:42.9]} 15. Be3 {[%clk 0:13:35.3]}
15... d5 {[%clk 0:14:45.7]} 16. exd5 {[%clk 0:12:57.7]} 16... Nxd5 {[%clk
0:14:50.6]} 17. Nxd5 {[%clk 0:12:57.5]} 17... Bxd5 {[%clk 0:14:53.4]} 18. f6
{[%clk 0:12:28.5]} 18... Bxf6 {[%clk 0:14:07.3]} 19. Rxf6 {[%clk 0:12:31.6]}
19... gxf6 {[%clk 0:14:10.9]} 20. Qg4+ {[%clk 0:12:35.7]} 20... Kh8 {[%clk
0:14:11.5]} 21. Qh4 {[%clk 0:12:39.8]} 21... e4 {[%clk 0:14:03.8]} 22. Qxf6+
{[%clk 0:12:42.4]} 22... Kg8 {[%clk 0:14:07.3]} 23. Bh6 {[%clk 0:12:35.9]} 1-0

[Event "Live Chess"]
[Site "Chess.com"]
[Date "2023.09.16"]
[Round "-"]
[White "KiwiDoFbi"]
[Black "Riquelme_Leonardo"]
[Result "0-1"]
[WhiteElo "1285"]
[BlackElo "1685"]
[TimeControl "900+5"]
[EndTime "7:20:38 PDT"]
[Termination "Riquelme_Leonardo venceu por desistência"]

1. e4 {[%clk 0:14:45.4]} 1... e5 {[%clk 0:15:02]} 2. f4 {[%clk 0:14:49.3]} 2...
exf4 {[%clk 0:15:06.2]} 3. Nf3 {[%clk 0:14:53.4]} 3... g5 {[%clk 0:15:10.8]} 4.
Bc4 {[%clk 0:14:56.9]} 4... Bg7 {[%clk 0:15:15.1]} 5. h4 {[%clk 0:14:57.9]} 5...
g4 {[%clk 0:15:18.6]} 6. Ng5 {[%clk 0:15:01.8]} 6... Nh6 {[%clk 0:15:15.2]} 7.
O-O {[%clk 0:14:54.9]} 7... f6 {[%clk 0:15:13.7]} 8. Rxf4 {[%clk 0:14:20.4]}
8... fxg5 {[%clk 0:15:15.5]} 9. hxg5 {[%clk 0:14:24.6]} 9... Be5 {[%clk
0:15:12]} 10. gxh6 {[%clk 0:13:54.1]} 10... Bxf4 {[%clk 0:15:11.9]} 11. Qxg4
{[%clk 0:13:58.2]} 11... Qg5 {[%clk 0:15:15.5]} 12. Qxg5 {[%clk 0:13:45.3]}
12... Bxg5 {[%clk 0:15:15.6]} 13. Nc3 {[%clk 0:13:49.7]} 13... Bxh6 {[%clk
0:15:17]} 14. Nd5 {[%clk 0:13:54.1]} 14... Kd8 {[%clk 0:15:13.4]} 15. b3 {[%clk
0:13:57.3]} 15... d6 {[%clk 0:15:15.1]} 16. Bb2 {[%clk 0:13:57.8]} 16... Rf8
{[%clk 0:15:12.6]} 17. Bf6+ {[%clk 0:13:44.2]} 17... Kd7 {[%clk 0:15:10.5]} 18.
Be7 {[%clk 0:12:35.5]} 18... Re8 {[%clk 0:14:58.9]} 19. Rf1 {[%clk 0:11:48.8]}
19... Rxe7 {[%clk 0:14:59.7]} 20. Nxe7 {[%clk 0:11:53.3]} 20... Kxe7 {[%clk
0:15:04.6]} 21. Rf7+ {[%clk 0:11:56]} 21... Kd8 {[%clk 0:15:06.8]} 22. Rxh7
{[%clk 0:11:47.3]} 22... Bxd2 {[%clk 0:15:10.6]} 23. Bd5 {[%clk 0:11:50.7]}
23... Nc6 {[%clk 0:15:08.2]} 24. Rh8+ {[%clk 0:11:52]} 24... Kd7 {[%clk
0:15:10.1]} 25. Rh7+ {[%clk 0:11:43.1]} 25... Ne7 {[%clk 0:15:11.3]} 0-1